Cogmind - Beta 16 @@@ ROGUE MODE // 2025.12.16 @ 16:52:45 // Winter2019/RPGLIKE Player: Gallgagger Result: Destroyed by 8R-AWN with 8R-AWN's Boregun Performance ------------- Evolutions (0) 0 Regions Visited (3) 600 Robots Destroyed (56) 280 Value Destroyed (1409) 1409 Prototype IDs (24) 480 Alien Tech Used (0) 0 Bonus (401) 401 TOTAL SCORE: 3170 Bonus ------- High Alert Combat Kills 101 Aligned with FarCom 300 Cogmind --------- Core Integrity 0/700 Matter 300/300 Energy 250/250 System Corruption 0% Temperature Cool (0) Movement Flying (32) Location -10/Exiles Parts ------- > --- POWER (2) -------- Ion Engine > --- PROPULSION (3) --- VTOL Module VTOL Module > --- UTILITY (3) ------ Signal Interpreter Improved Terrain Scanner Seismic Detector > --- WEAPON (3) ------- Improved EM Shotgun Light Assault Rifle Light Assault Rifle > --- INVENTORY (4) ---- (None) Peak State ------------ > --- POWER ------------ Ion Engine > --- PROPULSION ------- VTOL Module VTOL Module VTOL Module > --- UTILITY ---------- Signal Interpreter Improved Terrain Scanner PSU Rigger > --- WEAPON ----------- Improved EM Shotgun Light Assault Rifle Light Assault Rifle > --- INVENTORY -------- Nuclear Core Fission Core Light Fission Core Seismic Detector [Rating: 25] Favorites ----------- Power Light Ion Engine Engine Light Ion Engine Propulsion VTOL Module Wheel Wheel Hover Unit Hover Unit Flight Unit VTOL Module Utility Improved Terrain Scanner Device Improved Terrain Scanner Processor Signal Interpreter Weapon Improved EM Shotgun Energy Gun Improved EM Shotgun Ballistic Gun Light Assault Rifle Build | -11 -10 -10 -10 ------- Run | Yrd Mat Min Exi Slots Evolved 7 | 3 3 1 . Power 1 | . 1 . . Propulsion 2 | 1 1 . . Utility 2 | 1 1 . . Weapon 2 | 1 . 1 . Parts Attached 22 | 9 10 2 1 Power 2 | 1 1 . . Engine 2 | 1 1 . . Core . | . . . . Reactor . | . . . . Propulsion 9 | 3 6 . . Treads . | . . . . Leg . | . . . . Wheel 5 | 3 2 . . Hover 1 | . 1 . . Flight 3 | . 3 . . Utility 4 | 2 1 . 1 Device 3 | 2 . . 1 Storage . | . . . . Processor 1 | . 1 . . Hackware . | . . . . Protection . | . . . . Artifact . | . . . . Weapon 7 | 3 2 2 . Energy Gun 3 | 1 2 . . Energy Cannon . | . . . . Ballistic Gun 4 | 2 . 2 . Ballistic Cannon . | . . . . Launcher . | . . . . Special Weapon . | . . . . Impact Weapon . | . . . . Slashing Weapon . | . . . . Piercing Weapon . | . . . . Special Melee Weapon . | . . . . Unidentified Prototypes 1 | . 1 . . Parts Lost 2 | . 1 . 1 Power . | . . . . Propulsion 1 | . . . 1 Utility . | . . . . Weapon 1 | . 1 . . Highest Loss Streak 1 | . 1 . 1 To Critical Strikes . | . . . . Average Backups . | . . . 1 Power . | . . . . Propulsion . | . . . . Utility . | . . . . Weapon . | . . . . Tool/Special . | . . . . Unused Backups 10 | . 1 . 9 Power 3 | . . . 3 Propulsion . | . . . . Utility 7 | . 1 . 6 Weapon . | . . . . Tool/Special . | . . . . Average Slot Usage (%) 97 | . 97 100 96 Engine 15 | . 15 19 14 Wheel 5 | . 11 . . Hover 2 | . 4 . . Flight 19 | . 11 29 26 Device 21 | . 24 19 18 Processor 5 | . 2 9 9 Energy Gun 14 | . 16 15 9 Ballistic Gun 10 | . 8 6 18 Peak Build Rating 25 | 9 19 19 25 Average Rating 15 | 6 12 18 17 On Entrance 11 | . 9 19 18 Avg Prop Armor Cover (%) 6 | . 6 . . Naked Turns . | . . . . Heaviest Build 16 | 9 16 16 15 Greatest Support 37 | 37 31 22 22 Greatest Overweight (x) 1 | . 1 . . Average Overweight (x) . | . . . . Largest Inventory Capacity 4 | 2 2 4 4 Average Capacity 2 | 2 2 3 4 Most Carried 4 | . 2 4 4 Average Carried 1 | . . 2 2 Final Capacity 4 | 2 2 4 4 Final Carried 4 | . . 4 . Class Distribution -------------------- 36% | Scavenger-Sprinter 32% | Sprinter 23% | Mutant 7% | Scavenger-Mutant Dominant Class ---------------- Sprinter | -10/Materials Sprinter | -10/Mines Scavenger-Sprinter | -10/Exiles Resources | -11 -10 -10 -10 ----------- Run | Yrd Mat Min Exi Matter Collected 859 | 297 350 20 192 Remotely . | . . . . Salvage Created 1780 | 149 1512 119 . Parts 121 | 12 93 16 . Haulers Intercepted 1 | . 1 . . Recyclers Shooed 2 | 1 1 . . Parts Field Recycled . | . . . . Retrieved Matter . | . . . . Parts Self-Destructed . | . . . . Prevented . | . . . . Parts Restored . | . . . . Kills | -11 -10 -10 -10 ------- Run | Yrd Mat Min Exi Combat Hostiles Destroyed 45 | . 37 8 . Guns 44 | . 37 7 . AOE 1 | . . 1 . Classes Destroyed 8 | 2 6 . . Worker 2 | . 2 . . Tunneler 4 | 3 1 . . Hauler 1 | . 1 . . Recycler 3 | 1 2 . . Watcher 1 | . 1 . . Swarmer 16 | . 8 8 . Grunt 26 | . 26 . . Subdweller 3 | . 3 . . Best Kill Streak 7 | 2 7 3 . Combat Bots Only 6 | . 6 3 . Max Kills in Single Turn 2 | 1 1 2 . Gunslinging . | . . . . Exploded 1 | . . 1 . Melee . | . . . . Uniques/NPCs Destroyed . | . . . . Combat | -11 -10 -10 -10 -------- Run | Yrd Mat Min Exi Hostile Shots Fired 209 | . 133 18 58 Missed 74 | . 54 8 12 Hits 135 | . 79 10 46 Projectile 135 | . 79 10 46 Critical Strikes 26 | . 1 . 25 Damage Taken 1844 | . 930 94 820 Core 1519 | . 769 72 678 Absorbed by Shields . | . . . . Redirected to Core 1110 | . 522 72 516 Regen/Repaired (Parts) 3 | . 3 . . Core Remaining (%) 100 | 100 . . . Volleys Fired 158 | 6 97 9 46 Largest 2 | 2 2 2 2 Hottest 90 | 70 90 90 40 Shots Fired 314 | 12 193 18 91 Gun 314 | 12 193 18 91 Cannon . | . . . . Launcher . | . . . . Special . | . . . . Kinetic 162 | 9 62 . 91 Thermal 65 | 3 62 . . Explosive . | . . . . Electromagnetic 87 | . 69 18 . Robot Hit Streak 19 | 3 17 4 19 Robot Miss Streak 6 | 2 6 5 3 Penetration Max . | . . . . Secondary Targets 2 | . 2 . . Max Gunslinging Chain 1 | . 1 . . Shots Hit Robots 234 | 6 146 12 70 Core Hits 99 | 5 76 8 10 Critical Kills . | . . . . Critical Parts Destroyed 1 | . 1 . . Critical Strikes 6 | . 6 . . Burn 5 | . 5 . . Destroy 1 | . 1 . . Melee Attacks . | . . . . Impact . | . . . . Slashing . | . . . . Piercing . | . . . . Sneak Attacks . | . . . . Combat Hostiles . | . . . . Follow-up Attacks . | . . . . Damage Inflicted 3077 | 84 2272 153 568 Guns 2992 | 84 2209 131 568 Cannons . | . . . . Explosions 85 | . 63 22 . Melee . | . . . . Ramming . | . . . . Kinetic 1179 | 71 540 . 568 Thermal 721 | 13 686 22 . Explosive . | . . . . Electromagnetic 1177 | . 1046 131 . Impact . | . . . . Slashing . | . . . . Piercing . | . . . . Highest Corruption . | . . . . Average Corruption . | . . . . Corruption Purged . | . . . . Corruption Blocked . | . . . . Overload Shots . | . . . . Overflow Damage . | . . . . Projectiles . | . . . . Explosions . | . . . . Melee . | . . . . Knockbacks . | . . . . Impact . | . . . . Kinetic . | . . . . Secondary . | . . . . Self-Inflicted Damage 6 | . . 6 . Shots 1 | . . 1 . Rammed . | . . . . Targets Rammed . | . . . . Kicked . | . . . . Crushed . | . . . . Highest Temperature 42 | . 42 12 . Average Temperature 12 | . 14 10 . Received Heat Transfer 285 | . 258 . 27 Siege Activations . | . . . . Martial Activations . | . . . . Shielding Activations . | . . . . Robots Disrupted . | . . . . Combat Hostiles . | . . . . Robots Corrupted . | . . . . Combat Hostiles . | . . . . Parts Fried 2 | . 2 . . Impact Corruptions . | . . . . Robots Melted . | . . . . Combat Hostiles . | . . . . Parts Melted 3 | . 3 . . Heat Transferred 2370 | 37 2283 50 . Parts Sabotaged . | . . . . Parts Stolen . | . . . . Parts Stripped . | . . . . Power Chain Reactions 3 | . 2 1 . Alert | -11 -10 -10 -10 ------- Run | Yrd Mat Min Exi Maximum Alert Level 2 | . 2 2 . Low Security (%) 44 | 100 55 . . Level 1 30 | . 12 91 . Level 2 24 | . 31 8 . Level 3 . | . . . . Level 4 . | . . . . Level 5 . | . . . . High Security . | . . . . Max Security . | . . . . Peak Influence 690 | 10 690 415 . Initial 264 | . . 264 . Average 257 | 2 247 343 . Influence Increases 1339 | 20 1118 201 . Destroy 0b10 Robot/C 840 | . 680 160 . Destroy 0b10 Robot/NC 55 | 20 35 . . Destroy Leader 174 | . 144 30 . Successful Hack 24 | . 19 5 . Select Force Hacks 130 | . 130 . . Disable Machine 30 | . 30 . . Destroy Structure 26 | . 20 6 . Partial Spotted 15 | . 15 . . Lose Combat Pursuer 45 | . 45 . . Influence Decreases 1339 | 20 440 604 275 Entered New Map 689 | . . 414 275 Time Decay 640 | 20 430 190 . Lost Part 10 | . 10 . . Squads Dispatched 9 | . 9 . . Investigation 8 | . 8 . . Extermination . | . . . . Reinforcement 1 | . 1 . . Assault . | . . . . Garrison . | . . . . Intercept . | . . . . Searches Triggered . | . . . . Construction Impeded . | . . . . Haulers Reinforced . | . . . . Active Scanning Responses . | . . . . Cargo Convoy Interrupts . | . . . . Stealth | -11 -10 -10 -10 --------- Run | Yrd Mat Min Exi Distress Signals 6 | . 6 . . Communications Jammed . | . . . . Distress Signals . | . . . . Times Spotted 57 | . 46 9 2 Peak Tracking Total 10 | . 8 3 10 Tactical Retreats 3 | . 2 . 1 Traps | -11 -10 -10 -10 ------- Run | Yrd Mat Min Exi Traps Triggered 2 | . 2 . . Indirectly . | . . . . Trap Hack Attempts . | . . . . Triggered . | . . . . Disarmed . | . . . . Reprogrammed . | . . . . Reused 3 | . . . 3 Traps Extracted . | . . . . Installed 4 | . . . 4 Triggered . | . . . . Most Traps Carried 4 | . . 4 4 Objects Rigged 1 | . . . 1 Exploded 1 | . . . 1 Machines | -11 -10 -10 -10 ---------- Run | Yrd Mat Min Exi Machines Disabled 2 | . 2 . . Max in Single Turn 1 | . 1 . . Machines Repaired . | . . . . Machines Dismantled . | . . . . Machines Sabotaged 2 | . 2 . . Overloaded Fab Kills . | . . . . Hacking | -11 -10 -10 -10 --------- Run | Yrd Mat Min Exi Machines Accessed 10 | . 8 1 1 Terminals 7 | . 6 1 . Fabricators . | . . . . Repair Stations 1 | . 1 . . Recycling Units 1 | . 1 . . Scanalyzers . | . . . . Garrison Access . | . . . . Total Hacks 21 | . 18 2 1 Successful 13 | . 11 1 1 Failed 8 | . 7 1 . Catastrophic . | . . . . Database Lockouts . | . . . . Manual 21 | . 18 2 1 Terminals 18 | . 16 2 . Fabricators . | . . . . Repair Stations 1 | . 1 . . Recycling Units 1 | . 1 . . Scanalyzers . | . . . . Garrison Access . | . . . . Terminal Hacks 2 | . 1 . 1 Robot Analysis 1 | . 1 . . Proto ID Catalog 1 | . . . 1 Fabricator Hacks . | . . . . Repair Station Hacks . | . . . . Recycling Unit Hacks . | . . . . Scanalyzer . | . . . . Garrison Access Hacks . | . . . . Unauthorized Hacks 11 | . 10 1 . Terminals 9 | . 8 1 . Botnet 4 | . 3 1 . Sabotage 5 | . 5 . . Fabricators . | . . . . Repair Stations 1 | . 1 . . Patch 1 | . 1 . . Recycling Units 1 | . 1 . . Tunnel 1 | . 1 . . Scanalyzers . | . . . . Garrison Access . | . . . . Data Cores Recovered . | . . . . Used . | . . . . Hacking Detections 4 | . 3 1 . Full Trace Events . | . . . . Feedback Events . | . . . . Feedback Blocked . | . . . . Robot Schematics Acquired . | . . . . Robots Built . | . . . . Authchips . | . . . . Time . | . . . . Total Robot Build Rating . | . . . . Part Schematics Acquired . | . . . . Parts Built . | . . . . Authchips . | . . . . Time . | . . . . Total Part Build Rating . | . . . . Part Studies Acquired . | . . . . Parts Repaired . | . . . . Time . | . . . . Parts Recycled . | . . . . Recycled Matter . | . . . . Retrieved Matter . | . . . . Retrieved Components . | . . . . Parts Scanalyzed . | . . . . Part Schematics Acquired . | . . . . Parts Damaged . | . . . . Bothacking | -11 -10 -10 -10 ------------ Run | Yrd Mat Min Exi Used RIF Installer . | . . . . Robots Hacked . | . . . . Non-combat . | . . . . Combat . | . . . . Robot Hacks Applied . | . . . . Relay Couplers Released . | . . . . Fabnet Peak Effective % . | . . . . Robots Rewired . | . . . . Allies Hacked . | . . . . Hacks Repelled . | . . . . Allies | -11 -10 -10 -10 -------- Run | Yrd Mat Min Exi Total Allies 6 | . . 6 . Largest Group 6 | . . 6 6 Highest-Rated Group 121 | . . 121 121 Highest-Rated Ally 31 | . . 31 31 Total Orders 2 | . . . 2 STAY 2 | . . . 2 Ally Attacks 18 | . . . 18 Total Damage 23 | . . . 23 Kills . | . . . . Allies Corrupted . | . . . . Allies Melted . | . . . . Intel | -11 -10 -10 -10 ------- Run | Yrd Mat Min Exi Active Infowar (turns) 2322 | 46 1182 392 702 Terrain 2322 | 46 1182 392 702 Seismic 2286 | 13 1182 392 699 Robot Analysis Total 1 | . 1 . . Derelict Logs Recovered 2 | . . 2 . Drone Launches . | . . . . Drone Recoveries . | . . . . Exploration | -11 -10 -10 -10 ------------- Run | Yrd Mat Min Exi Turns Passed 2360 | 84 1182 392 702 Spaces Moved 3247 | 59 1106 907 1175 Core 4 | 4 . . . Treads . | . . . . Legs . | . . . . Wheels 282 | 55 227 . . Hover 183 | . 183 . . Flight 2778 | . 696 907 1175 Fastest Speed 29 | 50 29 29 29 Average Speed 36 | 90 46 29 29 Slowest Speed 120 | 100 120 29 29 Overloaded Moves . | . . . . Propulsion Burnouts . | . . . . Robots Hopped 15 | . 5 10 . Potential Cave-ins . | . . . . Cave-ins Triggered . | . . . . Exploration Rate (%) 72 | 5 93 100 91 Regions Visited 3 Branch Regions 2 Pre-discovered Areas 1 | . 1 . . Known Exits Taken 2 | . 1 1 . Unknown Exits Taken 1 | 1 . . . Scrap Searched 1 | . . 1 . Spaces Dug . | . . . . Terrain Destroyed 22 | . 16 6 . Melee . | . . . . Projectile . | . . . . AOE 22 | . 16 6 . Terrain Rammed . | . . . . Walls Destroyed . | . . . . Machines Disabled . | . . . . Actions | -11 -10 -10 -10 --------- Run | Yrd Mat Min Exi Total 4120 | 73 1566 1006 1475 Wait 600 | . 305 91 204 Move 3214 | 58 1095 886 1175 Hop 15 | . 5 10 . Pick Up 25 | . 2 4 19 Fast Attach 13 | 7 5 1 . Attach . | . . . . Detach . | . . . . Swap 15 | 2 10 1 2 Drop 28 | . 4 . 24 Fire 158 | 6 97 9 46 Melee . | . . . . Ram . | . . . . Kick . | . . . . Crush . | . . . . Escape Stasis . | . . . . Rewire . | . . . . Trap 5 | . . . 5 Miscellaneous 47 | . 43 4 . Route ------- -11/Scrapyard -10/Materials (discovered 5 exits: *Mat x3 / *Min / *Sub) -10/Mines (discovered 4 exits: *Mat x2 / *Exi / *Sub) -10/Exiles (discovered 2 exits: [*Min x2]) History --------- Turn | Location | Event 1 | -11/Scrapyard | Upgraded with Propulsion slot (x1) 1 | -11/Scrapyard | Upgraded with Utility slot (x1) 1 | -11/Scrapyard | Upgraded with Weapon slot (x1) 12 | -11/Scrapyard | Discovered new exit (range 16) 85 | -11/Scrapyard | Entered Materials 354 | -10/Materials | Discovered new exit (range 12) 509 | -10/Materials | Discovered new exit (range 15) 565 | -10/Materials | Discovered new exit (range 14) 565 | -10/Materials | Reached level 2 585 | -10/Materials | Derelicts attacked the area 669 | -10/Materials | Build established: Mutant 751 | -10/Materials | Upgraded with Utility slot (x1) 777 | -10/Materials | Discovered new exit (range 5) 791 | -10/Materials | Upgraded with Power slot (x1) 879 | -10/Materials | Reached level 3 901 | -10/Materials | Upgraded with Propulsion slot (x1) 954 | -10/Materials | Discovered new exit (range 3) 962 | -10/Materials | Identified exit to Materials 1036 | -10/Materials | Build established: Sprinter 1176 | -10/Materials | Identified exit to Mines 1204 | -10/Materials | Reached level 4 1267 | -10/Materials | Entered Mines 1278 | -10/Mines | Received a Rocket Launcher from a helpful Derelict 1298 | -10/Mines | Learned Materials garrison access intel 1305 | -10/Mines | Found a hidden stash of uninstalled traps 1332 | -10/Mines | Reached level 5 1377 | -10/Mines | Discovered exit to Materials (range 10) 1383 | -10/Mines | Deemed a non-threat by the Exiles lab entrance 1383 | -10/Mines | Discovered new exit (range 5) 1405 | -10/Mines | Learned Materials emergency access door positions 1411 | -10/Mines | Discovered exit to Materials (range 11) 1473 | -10/Mines | Received a Mining Laser from a helpful Derelict 1486 | -10/Mines | Assisted by bots powering up and referring to "LRC-V3" 1527 | -10/Mines | Discovered new exit (range 9) 1530 | -10/Mines | Upgraded with Weapon slot (x1) 1538 | -10/Mines | Identified exit to Subcaves 1571 | -10/Mines | Identified exit to Exiles 1659 | -10/Mines | Entered Exiles 1659 | -10/Exiles | Accompanied by 6 allies 1667 | -10/Exiles | Met 8R-AWN 1671 | -10/Exiles | Met EX-HEX 1679 | -10/Exiles | Met EX-BIN 1683 | -10/Exiles | Aligned with FarCom system 1683 | -10/Exiles | Given EX-Vault access code 1689 | -10/Exiles | Led the pair of lost Derelicts to a safe place 1690 | -10/Exiles | Opened EX-Vault 1697 | -10/Exiles | Warned to stay clear of 0b10 Research branches 1706 | -10/Exiles | Met EX-DEC 1800 | -10/Exiles | Build established: Scavenger-Sprinter 1898 | -10/Exiles | Found PSU Rigger 1948 | -10/Exiles | Visited The Gauntlet 1992 | -10/Exiles | Discovered new exit (range 10) 2030 | -10/Exiles | Discovered new exit (range 15) 2117 | -10/Exiles | Warned about trapping Exiles lab 2135 | -10/Exiles | Attacked by the Exiles 2283 | -10/Exiles | Lost 4 allies 2298 | -10/Exiles | Core integrity fell below 50% 2341 | -10/Exiles | Core integrity fell below 20% 2361 | -10/Exiles | Destroyed by 8R-AWN with 8R-AWN's Boregun Last Messages --------------- 02344_ HV Slug penetrates Wall. 02347_ Acquired 2 matter. 02348_ Penetrated by HV Slug. 02348_ HV Slug penetrates Wall. 02348_ Penetrated by HV Slug. 02348_ HV Slug penetrates Wall. 02350_ Acquired 2 matter. 02353_ Penetrated by HV Slug. 02353_ HV Slug penetrates Earth. 02353_ Penetrated by HV Slug. 02353_ HV Slug penetrates Earth. 02355_ Acquired 2 matter. 02357_ Penetrated by HV Slug. 02357_ HV Slug penetrates Earth. 02357_ Penetrated by HV Slug. 02357_ HV Slug penetrates Earth. 02358_ Acquired 2 matter. 02359_ Earth collapses. 02360_ Acquired 2 matter. 02361_ Penetrated by HV Slug. Map ----- +----------------------------------------------------+ | ?????????????????????????????????????????????????? | | ?????????????????????????????????????????????????? | | ?????????????????????????????????????????????????? | | ??????????????#####??????????????????????????????? | | ?????????????## ##?????????????????????????????? | | ?????????????# #?????????????????????????????? | | ?????????????# < #?????#???????????????????????? | | ?????????????# ###??????????????#????????????? | | ?????????????# #???????????????????????????? | | ?????????????# ##???????????????????????????? | | ?????????????## #???# ???????????????????????? | | ??????????????# ##??? ?????????#???#?????????? | | ??????????????## #??? #???????#######???#????? | | ???????????????# ####;##?#?####!!! "##???#??#? | | ????????????#??# # "###?#??# !"#????????? | | ???????????????## #??#### "#????#???# | | ????????????????##" ##?#?## ""#????????? | | ????????????????#"" #####" ""###??????? | | ?????????####?#?#### ##" ""#????????# | | ?????????# ????#?## #"" ###?#??????? | | ???????#??# #####?#"## ###????????? | | ???????##??? ########;# ##?????#?#?? | | ????????###???# ### ### ##???#?#??? | | ?????????????#?? ;#;##;## ####?#????? | | ?????????????????# #;!!! ^ * ###?#???? | | ???????#?#?????#??# ;!%%!@* ###"" ######?? | | ??????##???#?#??### #!=[=g= #### """### | | ????????????????## ; =%!! !##??#" * | | ?????????????##??## ; ! """"###??##"# * | | ?????????#??#?#???############?#??##### | | ???????????#?##?#??##??#?#?######?#???### * ^ | | ?????????##??#?##?##?#??????????#???#?#?### | | ???????????????#??##?##??#??#???#?##??????## | | ???????????#???#???#??###???#??###?###????### | | ????????#???????###??#?#?#????##???#???#?#??##" | | ????????????#???????#?#?#???##?#?##?#??#?##??#""" | | ?????????????#?????##???????##??##??????????##" | | ??????????????#???#???#??#??##????#???#?#???#"" | | ???????????????#??????????#?#?#???##???#???##""" | | ???????????????????????#?##???????##???????#""" | | ?????????????????????????#????##???????????#""" | | ???????????????????????????#?????????#?????#"" | | ??????????????#????????#????###??????????#?#""" | | ???????????????????????????????????????????#"" | | ???????????????????????????????????????????##"" | | ????????????????????????????????????????????#"""" | | ????????????????????????????????????????????## | | ?????????????????????????????????????????????#" | | ?????????????????????????????????????????????#"""" | | ?????????????????????????????????????????????#"" | +----------------------------------------------------+ Best States ------------- Heat Dissipation 43 Energy Generation 15 Energy Capacity 275 Matter Stores 300 Matter Capacity 300 Sight Range 16 Terrain Scan Range 16 Terrain Scan Density 10 Evasion (%) 64 Item Schematics ----------------- None Robot Schematics ------------------ None Fabricated ------------ Nothing Repaired ---------- Nothing Studied --------- None Alien Tech Used ----------------- None Achievements -------------- None Challenges ------------ None RPGLIKE | -11 -10 -10 -10 --------- Run | Yrd Mat Min Exi Levels Raised 4 | . 3 1 . XP Earned 9563 | 3000 4979 1341 243 XP Spent 8970 | 2960 2700 2550 760 Upgrades 21 | 10 4 3 4 Power Slot 1 | . 1 . . Propulsion Slot 2 | 1 1 . . Utility Slot 2 | 1 1 . . Weapon Slot 2 | 1 . 1 . Core Integrity 2 | . . . 2 Heat Dissipation 3 | 3 . . . Mass Support 2 | 1 1 . . Inventory Capacity 4 | 2 . 2 . Ranged Accuracy 1 | 1 . . . TH Damage % 2 | . . . 2 Protomatter Created 523 | . 484 39 . Integrity Restored 902 | . 859 43 . Core 808 | . 769 39 . Parts 94 | . 90 4 . Protomatter Decayed 124 | . 118 6 . Game ------ Seed DirtyStealthLaser Manual? 0 Play Time 00:28:48 Cumulative 484.2 hours Start 2025.12.16 @ 10:30:43 End 2025.12.16 @ 16:52:45 Sessions 3 Manual Loads 0 Difficulty Rogue Special Mode Winter2019/RPGLIKE Game No. 182 Rogue 28 Adventurer 154 Explorer 0 Win Type - Total 19 Types 4/3/3/3/2/1/0/1/1/1 Lore% 94 Gallery% 85 Achievement% 61 Wizard Run 0 Options --------- Layout 2 ASCII 0 Keyboard 0 Movement Numpad Keybinds 0 Fullscreen 2 Font 24/Smallcaps Map View 50x44 Zoom Use 0% Tactical HUD 1 Map Filters NONE Filters NONE Steam 1 RUN: b839940b-33f6-4e61-8223-984c0498eaab